bitfinex/quotes_BTCUSD_20220109
["timestamp","ask_amount","ask_price","bid_price","bid_amount"]
[1641743215985,0.413305,41589.0,41587.0,0.00017328]
[1641743216586,0.430305,41589.0,41587.0,0.00017328]
[1641743217053,0.430305,41589.0,41585.0,0.21076119]
[1641743217255,0.430305,41589.0,41586.0,0.00017765]
[1641743217755,0.353153,41589.0,41586.0,0.00017765]
[1641743218353,0.353153,41589.0,41585.0,0.21093942]
[1641743218553,0.367153,41589.0,41586.0,0.003]
[1641743219356,1.367153,41589.0,41586.0,0.003]
[1641743219756,1.353153,41589.0,41585.0,0.52899931]
[1641743220589,1.372153,41589.0,41588.0,0.00015552]
[1641743221191,1.40489809,41589.0,41588.0,9.552e-05]
[1641743221694,1.54605009,41589.0,41588.0,9.552e-05]
[1641743221889,1.69726274,41589.0,41588.0,9.552e-05]
[1641743222088,2.56613941,41589.0,41588.0,9.552e-05]
[1641743222591,1.160171,41588.0,41584.0,0.10435203]
[1641743222789,0.398,41587.0,41586.0,0.00017808]
[1641743223087,1.27705646,41587.0,41586.0,0.00017808]
[1641743223289,1.27705646,41587.0,41584.0,0.02426987]
[1641743223489,0.06017,41586.0,41584.0,0.02426987]
[1641743223687,0.25760668,41585.0,41584.0,0.02426987]
[1641743223890,0.30760668,41585.0,41584.0,0.02426987]
[1641743224089,0.44035177,41585.0,41584.0,0.02426987]
[1641743224328,0.94035177,41585.0,41584.0,0.02426987]
[1641743224528,1.50935177,41585.0,41584.0,0.02426987]
[1641743224728,1.55566314,41585.0,41584.0,0.02426987]
[1641743225632,1.55566314,41585.0,41584.0,0.02478994]
[1641743225930,1.53790398,41585.0,41584.0,0.02478994]
[1641743226430,1.54890398,41585.0,41584.0,0.02478994]
[1641743227033,1.64890398,41585.0,41584.0,0.02478994]
[1641743227233,1.64766314,41585.0,41584.0,0.02478994]
[1641743227833,1.59035177,41585.0,41584.0,0.02478994]
[1641743228488,1.64879839,41585.0,41584.0,0.02478994]
[1641743228687,1.60235177,41585.0,41584.0,0.02478994]
[1641743229889,1.59035177,41585.0,41584.0,0.02478994]
[1641743230688,1.60135177,41585.0,41584.0,0.02478994]
[1641743231731,1.60135177,41585.0,41584.0,0.02076018]
[1641743231732,1.59035177,41585.0,41584.0,0.02076018]
[1641743231933,1.59160047,41585.0,41584.0,0.02076018]
[1641743232132,1.69160047,41585.0,41584.0,0.02076018]
[1641743232332,1.59160047,41585.0,41584.0,0.02076018]
[1641743232533,1.70360047,41585.0,41584.0,0.02076018]
[1641743232732,1.75001222,41585.0,41584.0,0.02076018]
[1641743232936,1.79801222,41585.0,41584.0,0.02076018]
[1641743233735,1.79199587,41585.0,41582.0,0.0001771]
[1641743233935,1.00321594,41584.0,41582.0,0.0001771]
[1641743234138,0.548,41583.0,41582.0,0.0001771]
[1641743234339,0.63074509,41583.0,41582.0,0.0001771]
[1641743234537,0.73074509,41583.0,41582.0,0.0001771]
[1641743234937,0.05,41582.0,41580.0,0.00017711]
[1641743235139,0.37126659,41581.0,41580.0,0.00017711]
[1641743235337,1.01417968,41581.0,41580.0,0.00017711]
[1641743235586,0.61417968,41581.0,41580.0,0.00017711]
[1641743235785,0.58143459,41581.0,41580.0,0.00017711]
[1641743235984,0.58143459,41581.0,41574.0,0.00070857]
[1641743235985,1.11461621,41581.0,41578.0,0.00017736]
[1641743236185,0.06017,41580.0,41578.0,0.00017736]
[1641743237184,0.30529407,41578.0,41577.0,0.00017737]
[1641743237587,0.50529407,41578.0,41577.0,0.00017737]
[1641743237986,0.62564007,41578.0,41577.0,0.00017737]
[1641743238189,0.62564007,41578.0,41567.0,0.31708618]
[1641743238190,0.62564007,41578.0,41575.0,0.00017738]
[1641743238585,0.52029407,41578.0,41575.0,0.00017738]
[1641743239431,0.5,41577.0,41575.0,0.00017738]
[1641743239634,0.6,41577.0,41575.0,0.00017738]
[1641743240032,0.660171,41577.0,41574.0,0.00017739]
[1641743240435,0.660171,41577.0,41574.0,0.00035477]
[1641743240632,0.5,41576.0,41574.0,0.00035477]
[1641743240935,0.5,41575.0,41574.0,0.00017738]
[1641743241435,0.5,41575.0,41573.0,0.00017739]
[1641743241832,0.40373651,41574.0,41573.0,0.00017739]
[1641743242031,0.5,41574.0,41573.0,0.00017739]
[1641743242635,0.53,41574.0,41571.0,0.0001774]
[1641743243689,0.03,41574.0,41570.0,0.0001774]
[1641743243890,0.83790618,41578.0,41570.0,0.0001774]
[1641743244489,0.84890618,41578.0,41570.0,0.0001774]
[1641743244689,0.84890618,41578.0,41572.0,0.00017739]
[1641743245087,0.2001,41574.0,41572.0,0.00017739]
[1641743245691,0.2001,41574.0,41572.0,0.00065066]
[1641743245891,0.2001,41574.0,41572.0,0.00047327]
[1641743246724,0.2131,41574.0,41572.0,0.00047327]
[1641743248024,0.2001,41574.0,41572.0,0.00047327]
[1641743248629,0.2161,41574.0,41572.0,0.00047327]
[1641743249225,1.276274,41574.0,41572.0,0.00047327]
[1641743249426,0.98106172,41573.0,41572.0,0.00047327]
[1641743249626,0.33106172,41573.0,41572.0,0.00047327]
[1641743250578,0.014,41573.0,41570.0,0.00065024]
[1641743250783,0.29041697,41572.0,41570.0,0.00065024]
[1641743250977,0.060178,41571.0,41570.0,0.00065024]
[1641743251378,0.46718762,41571.0,41570.0,0.00047284]
[1641743252577,0.47518762,41571.0,41570.0,0.00047284]
[1641743253783,0.40700962,41571.0,41570.0,0.00047284]
[1641743253982,0.060174,41573.0,41568.0,0.00017742]
[1641743254229,1.27269279,41574.0,41568.0,0.00017742]
[1641743254533,0.009,41573.0,41568.0,0.01835484]
[1641743254729,0.009,41573.0,41568.0,0.01817742]
[1641743255333,0.009,41573.0,41568.0,0.01317742]
[1641743255731,0.009,41573.0,41570.0,0.00042686]
[1641743255933,0.41805006,41571.0,41570.0,0.00042686]
[1641743256733,0.42705006,41571.0,41570.0,0.00842686]
[1641743257991,0.41805006,41571.0,41570.0,0.00042686]
[1641743258686,0.42705006,41571.0,41570.0,0.00042686]
[1641743259088,0.42705006,41571.0,41570.0,0.00036686]
[1641743259488,0.52705006,41571.0,41570.0,0.00036686]
[1641743259687,0.62705006,41571.0,41570.0,0.00036686]
[1641743259887,0.61805006,41571.0,41570.0,0.00036686]
[1641743260688,1.3385314,41571.0,41568.0,0.00059828]
[1641743260988,0.48160676,41570.0,41568.0,0.00059828]
[1641743261189,0.51720364,41570.0,41568.0,0.0007757]
[1641743261392,0.66720364,41570.0,41568.0,0.00059828]
[1641743261588,0.366178,41570.0,41568.0,0.00059828]
[1641743261829,0.048,41569.0,41568.0,0.00059828]
[1641743262427,0.048,41569.0,41568.0,0.00042086]
[1641743262629,0.072,41569.0,41568.0,0.00042086]
[1641743263832,0.048,41569.0,41568.0,0.00042086]
[1641743264630,0.068,41569.0,41568.0,0.00042086]
[1641743264833,0.39860954,41569.0,41568.0,0.00042086]
[1641743265031,0.60591278,41569.0,41568.0,0.00042086]
[1641743265682,0.05,41568.0,41566.0,0.40145285]
[1641743265880,0.060188,41567.0,41566.0,0.40163028]
[1641743266080,0.09236124,41567.0,41566.0,0.40145285]
[1641743266682,0.071188,41567.0,41566.0,0.40145285]
[1641743266881,0.10338431,41567.0,41566.0,0.40145285]
[1641743267079,0.10338431,41567.0,41566.0,0.40127542]
[1641743267882,0.09238431,41567.0,41566.0,0.40127542]
[1641743268681,0.20338431,41567.0,41566.0,0.40127542]
[1641743269737,0.20338431,41567.0,41566.0,0.34946851]
[1641743269936,0.19238431,41567.0,41566.0,0.34946851]
[1641743270639,0.20438431,41567.0,41566.0,0.34904679]
[1641743271237,0.25022857,41567.0,41566.0,0.34904679]
[1641743272038,0.23822857,41567.0,41566.0,0.34904679]
[1641743272240,0.13822857,41567.0,41566.0,0.34904679]
[1641743272440,0.07804057,41567.0,41566.0,0.62718481]
[1641743272638,0.06119631,41567.0,41566.0,0.34904679]
[1641743272838,0.06119631,41567.0,41566.0,0.62106191]
[1641743272839,0.029,41567.0,41566.0,0.62106191]
[1641743273280,0.029,41567.0,41566.0,0.34904679]
[1641743273679,0.029,41567.0,41566.0,0.62975212]
[1641743274079,0.20064,41569.0,41566.0,0.62975212]
[1641743274679,0.21364,41569.0,41566.0,0.34904679]
[1641743275881,0.20064,41569.0,41566.0,0.34904679]
[1641743276480,0.20064,41569.0,41566.0,0.61844641]
[1641743276736,0.20764,41569.0,41566.0,0.34904679]
[1641743276936,0.20764,41569.0,41566.0,0.61681837]
[1641743277837,0.20064,41569.0,41566.0,0.61681837]
[1641743278236,0.20064,41569.0,41566.0,0.34904679]
[1641743278636,0.20664,41569.0,41566.0,0.61819688]
[1641743278836,0.20664,41569.0,41566.0,0.61990669]
[1641743279237,1.20664,41569.0,41566.0,0.61990669]
[1641743280137,0.03245881,41568.0,41566.0,0.62152558]
[1641743280336,1.20064,41569.0,41567.0,0.2676813]
[1641743280784,0.007,41568.0,41567.0,0.2676813]
[1641743282786,0.014,41568.0,41567.0,0.2676813]
[1641743283587,0.014,41568.0,41566.0,0.34904679]
[1641743283786,0.014,41568.0,41566.0,0.6203221]
[1641743283987,1.20064,41569.0,41566.0,0.6203221]
[1641743284935,1.20564,41569.0,41566.0,0.6203221]
[1641743285932,1.20064,41569.0,41566.0,0.6203221]
[1641743286831,1.20564,41569.0,41566.0,0.6203221]
[1641743287032,1.20564,41569.0,41566.0,0.61788261]
[1641743287983,1.20064,41569.0,41566.0,0.61788261]
[1641743288388,1.20064,41569.0,41566.0,0.34904679]
[1641743288586,0.03250168,41568.0,41566.0,0.34904679]
[1641743288787,0.15512787,41568.0,41566.0,0.34904679]
[1641743288985,0.20126014,41568.0,41566.0,0.34904679]
[1641743289186,1.13250168,41567.0,41566.0,0.34904679]
[1641743289585,1.32863395,41567.0,41566.0,0.34904679]
[1641743289887,0.22863395,41567.0,41566.0,0.34904679]
[1641743290088,0.34901395,41567.0,41566.0,0.34904679]
[1641743290286,0.30288168,41567.0,41566.0,0.34904679]
[1641743290488,0.75288168,41567.0,41566.0,0.34904679]
[1641743290690,0.76688168,41567.0,41566.0,0.34904679]
[1641743291087,0.81301395,41567.0,41566.0,0.34904679]
[1641743291287,0.31688168,41567.0,41566.0,0.34904679]
[1641743291488,0.71688168,41567.0,41566.0,0.34904679]
[1641743292331,1.16432971,41567.0,41566.0,0.34904679]
[1641743292531,0.76432971,41567.0,41566.0,0.34904679]
[1641743292734,0.82346198,41567.0,41566.0,0.34904679]
[1641743292931,0.77732971,41567.0,41566.0,0.34904679]
[1641743293332,0.90836198,41567.0,41566.0,0.34904679]
[1641743293534,0.90836198,41567.0,41565.0,0.40542067]
[1641743293733,0.95,41566.0,41565.0,0.40542067]
[1641743293932,0.95,41566.0,41564.0,0.00017744]
[1641743293933,0.49070168,41566.0,41564.0,0.00017744]
[1641743294139,0.68683395,41566.0,41564.0,0.00017744]
[1641743294433,0.64396252,41565.0,41564.0,0.00017744]
[1641743294632,0.79396252,41565.0,41563.0,0.00017745]
[1641743294833,0.060197,41564.0,41563.0,0.00017745]
[1641743295033,0.09269868,41564.0,41563.0,0.00017745]
[1641743295482,0.49269868,41564.0,41563.0,0.00017745]
[1641743295683,0.49269868,41564.0,41561.0,0.00436027]
[1641743295684,0.19269641,41564.0,41561.0,0.00453773]
[1641743295888,0.120399,41563.0,41561.0,0.00408396]
[1641743296084,0.15290068,41563.0,41561.0,0.00408396]
[1641743296283,0.73248058,41562.0,41561.0,0.00408396]
[1641743296486,0.78248058,41562.0,41561.0,0.00408396]
[1641743296689,0.88248058,41562.0,41561.0,0.00408396]
[1641743296885,0.88248058,41562.0,41561.0,0.0039065]
[1641743297189,0.92861285,41562.0,41561.0,0.0039065]
[1641743297587,0.07863395,41562.0,41561.0,0.0039065]
[1641743297986,0.03250168,41562.0,41554.0,0.00063997]
[1641743298387,0.03250168,41562.0,41554.0,0.27168987]
[1641743298590,0.03250168,41562.0,41554.0,0.26668987]
[1641743298887,0.43342251,41558.0,41554.0,0.26668987]
[1641743299087,0.75420202,41558.0,41553.0,0.0001]
[1641743299935,0.29487155,41561.0,41553.0,0.0001]
[1641743300134,0.44126116,41556.0,41553.0,0.0001]
[1641743300736,0.44426116,41556.0,41553.0,0.0001]
[1641743300936,0.08819,41557.0,41553.0,0.0001]
[1641743301341,0.03261261,41556.0,41553.0,0.0001]
[1641743301737,0.060201,41555.0,41553.0,0.0001]
[1641743302341,0.43178299,41555.0,41553.0,0.0001]
[1641743302638,0.03260152,41554.0,41553.0,0.0001]
[1641743304787,0.04160152,41554.0,41553.0,0.0001]
[1641743306087,0.38260152,41554.0,41553.0,0.0001]
[1641743306287,0.13260152,41554.0,41553.0,0.0001]
[1641743306486,0.48260152,41554.0,41553.0,0.0001]
[1641743306734,0.49360152,41554.0,41553.0,0.0001]
[1641743307936,0.48260152,41554.0,41553.0,4e-05]
[1641743308133,0.13260152,41554.0,41553.0,4e-05]
[1641743308537,0.03260152,41554.0,41553.0,4e-05]
[1641743308735,0.04460152,41554.0,41553.0,4e-05]
[1641743309335,1.04460152,41554.0,41553.0,4e-05]
[1641743309536,1.50517515,41554.0,41553.0,4e-05]
[1641743309937,1.49317515,41554.0,41553.0,4e-05]
[1641743310237,1.53936206,41554.0,41553.0,4e-05]
[1641743310491,1.78736206,41554.0,41553.0,0.00045837]
[1641743310686,2.30123206,41554.0,41553.0,0.00045837]
[1641743311090,1.0,41553.0,41552.0,0.0001]
[1641743311288,1.41283924,41553.0,41552.0,0.0001]
[1641743311489,0.5,41552.0,41551.0,0.00437676]
[1641743311690,0.5,41552.0,41550.0,0.00021]
[1641743311691,0.59273924,41552.0,41550.0,0.00021]
[1641743311889,0.56652143,41551.0,41550.0,0.00021]
[1641743312091,0.74712295,41551.0,41537.0,0.00011]
[1641743312289,0.35,41549.0,41537.0,0.00011]
[1641743312489,0.35,41549.0,41545.0,0.00033]
[1641743312490,0.398,41549.0,41545.0,0.00033]
[1641743312690,0.43060152,41549.0,41545.0,0.00033]
[1641743312892,0.53060152,41549.0,41545.0,0.00033]
[1641743313194,1.05901228,41549.0,41547.0,0.66117639]
[1641743313391,0.36125643,41548.0,41547.0,0.66117639]
[1641743313591,0.58804486,41548.0,41547.0,0.66117639]
[1641743313790,0.78804486,41548.0,41547.0,0.66117639]
[1641743313990,0.92804486,41548.0,41545.0,0.00033]
[1641743314243,0.590427,41547.0,41546.0,0.00033]
[1641743314446,0.72292852,41547.0,41546.0,0.00033]
[1641743314742,0.63492852,41547.0,41546.0,0.00033]
[1641743315144,0.83492852,41547.0,41546.0,0.00033]
[1641743315345,1.33492852,41547.0,41543.0,0.00603285]
[1641743315545,0.060232,41544.0,41543.0,0.00603285]
[1641743315751,0.49725099,41544.0,41543.0,0.00603285]
[1641743316146,0.59725099,41544.0,41543.0,0.00603285]
[1641743316746,0.61325099,41544.0,41543.0,0.00603285]
[1641743317147,0.060234,41542.0,41538.0,0.00022]
[1641743317447,0.73589206,41541.0,41538.0,0.00022]
[1641743318288,0.35,41541.0,41538.0,0.00022]
[1641743318486,0.698,41541.0,41538.0,0.00022]
[1641743318788,0.51,41541.0,41538.0,0.00022]
[1641743318985,0.51,41541.0,41538.0,0.00031924]
[1641743319386,0.51,41541.0,41535.0,6.762e-05]
[1641743319387,0.5,41540.0,41535.0,6.762e-05]
[1641743319587,0.06025,41536.0,41535.0,6.762e-05]
[1641743319786,0.10825,41536.0,41535.0,6.762e-05]
[1641743320585,0.41068273,41536.0,41535.0,6.762e-05]
[1641743320792,0.42168273,41536.0,41535.0,6.762e-05]
[1641743320986,0.52168273,41536.0,41535.0,6.762e-05]
[1641743321588,1.06831268,41536.0,41535.0,6.762e-05]
[1641743321840,0.72168273,41536.0,41535.0,6.762e-05]
[1641743322036,0.71068273,41536.0,41535.0,6.762e-05]
[1641743322336,0.51068273,41536.0,41535.0,6.762e-05]
[1641743322735,0.52168273,41536.0,41535.0,6.762e-05]
[1641743323636,0.21925,41536.0,41535.0,6.762e-05]
[1641743324137,0.11925,41536.0,41535.0,6.762e-05]
[1641743324538,0.10825,41536.0,41535.0,6.762e-05]
[1641743324737,0.12125,41536.0,41535.0,6.762e-05]
[1641743325588,0.07325,41536.0,41535.0,6.762e-05]
[1641743325987,0.20076,41538.0,41535.0,6.762e-05]
[1641743326185,0.20076,41538.0,41535.0,0.28365278]
[1641743326385,0.20076,41538.0,41535.0,0.64895177]
[1641743326787,0.22776,41538.0,41535.0,0.65195177]
[1641743326988,0.120448,41542.0,41535.0,0.65195177]
[1641743327187,0.060223,41539.0,41535.0,0.65195177]
[1641743327587,0.20046,41538.0,41535.0,0.36836661]
[1641743328190,0.260685,41538.0,41535.0,0.36836661]
[1641743328592,0.260685,41538.0,41537.0,0.35900795]
[1641743328790,0.276685,41538.0,41537.0,0.35900795]
[1641743328989,0.21646,41538.0,41537.0,0.35900795]
[1641743329234,0.276685,41538.0,41535.0,0.36936661]
[1641743330037,0.276685,41538.0,41535.0,0.36536661]
[1641743330038,0.20046,41538.0,41535.0,0.36536661]
[1641743330838,0.21046,41538.0,41535.0,0.36536661]
[1641743331241,0.21046,41538.0,41535.0,0.61768634]
[1641743331438,0.21046,41538.0,41535.0,6.762e-05]
[1641743331636,0.560227,41536.0,41535.0,6.762e-05]
[1641743332636,0.060227,41536.0,41535.0,6.762e-05]
[1641743332837,0.079227,41536.0,41535.0,0.00506762]
[1641743333991,0.579227,41536.0,41535.0,0.00506762]
[1641743334193,0.560227,41536.0,41535.0,6.762e-05]
[1641743334795,0.576227,41536.0,41535.0,0.00506762]
[1641743335993,0.560227,41536.0,41535.0,6.762e-05]
[1641743336193,0.910227,41536.0,41535.0,6.762e-05]
[1641743336398,1.43711287,41536.0,41535.0,6.762e-05]
[1641743336593,1.73322985,41536.0,41535.0,6.762e-05]
[1641743336835,1.75522985,41536.0,41535.0,6.762e-05]
[1641743337037,2.35522985,41536.0,41535.0,6.762e-05]
[1641743337239,2.40322985,41536.0,41535.0,6.762e-05]
[1641743337638,1.80322985,41536.0,41535.0,6.762e-05]
[1641743338044,1.05434398,41536.0,41532.0,0.01010502]
[1641743338339,0.06024,41533.0,41532.0,0.01010502]
[1641743339341,0.39639125,41533.0,41532.0,0.01010502]
[1641743340145,0.06024,41533.0,41532.0,0.01010502]
[1641743340793,0.07824,41533.0,41532.0,0.01010502]
[1641743342692,0.31824,41533.0,41532.0,0.01010502]
[1641743343091,0.66607644,41533.0,41532.0,0.01010502]
[1641743343491,0.76607644,41533.0,41532.0,0.01010502]
[1641743344096,0.74807644,41533.0,41532.0,0.01010502]
[1641743344837,0.41824,41533.0,41532.0,0.01010502]
[1641743345434,0.76305934,41533.0,41532.0,0.01010502]
[1641743346034,0.27990068,41520.0,41519.0,0.00011]
[1641743346238,0.27990068,41520.0,41515.0,0.00011]
[1641743346239,0.26195312,41516.0,41515.0,0.00011]
[1641743346435,0.36521712,41516.0,41515.0,0.00011]
[1641743346635,1.1,41515.0,41510.0,0.37080828]
[1641743346839,0.048,41515.0,41510.0,0.37080828]
[1641743347036,0.26370329,41511.0,41508.0,0.48919336]
[1641743347238,0.07907,41511.0,41508.0,0.00011]
[1641743347440,0.139339,41511.0,41508.0,0.00011]
[1641743347640,0.07907,41511.0,41508.0,0.00011]
[1641743348489,0.25695312,41516.0,41508.0,0.00011]
[1641743348890,0.008,41511.0,41508.0,0.00011]
[1641743349492,0.060265,41510.0,41508.0,0.00011]
[1641743349892,0.060265,41510.0,41506.0,0.40930234]
[1641743350091,0.060269,41513.0,41506.0,0.38430234]
[1641743350291,0.060269,41513.0,41504.0,0.00011]
[1641743350494,0.28399929,41515.0,41506.0,0.00018013]
[1641743350692,0.24,41511.0,41506.0,0.00018013]
[1641743351292,0.24,41511.0,41507.0,0.36773236]
[1641743351496,0.060267,41509.0,41507.0,0.36773236]
[1641743352540,0.360536,41511.0,41507.0,0.36773236]
[1641743352541,0.24,41511.0,41507.0,0.36773236]
[1641743352942,0.01,41509.0,41507.0,0.39073236]
[1641743353444,0.24,41511.0,41507.0,0.39073236]
[1641743354645,0.24,41511.0,41507.0,0.36773236]
[1641743354841,0.24,41511.0,41507.0,0.3889061]
[1641743355893,0.24,41511.0,41507.0,0.5491591]
[1641743356097,0.00103895,41522.0,41517.0,0.01695312]
[1641743356793,0.00103895,41522.0,41518.0,0.28458775]
[1641743357196,0.00103895,41522.0,41521.0,0.41186795]
[1641743357795,0.75103895,41522.0,41521.0,0.41186795]
[1641743357993,0.00103895,41522.0,41521.0,0.41186795]
[1641743358195,0.00020798,41523.0,41521.0,0.41186795]
[1641743358494,0.00020798,41524.0,41522.0,0.27724071]
[1641743358694,0.00020798,41524.0,41522.0,0.62348671]
[1641743358895,0.00020798,41524.0,41523.0,0.28281185]
[1641743359339,0.00020825,41525.0,41523.0,0.28281185]
[1641743360539,0.00020825,41526.0,41521.0,0.41186795]
[1641743360940,0.026,41525.0,41523.0,0.004]
[1641743361539,0.026,41525.0,41523.0,0.27764993]
[1641743361739,0.026,41525.0,41523.0,0.004]
[1641743362141,0.00020825,41526.0,41521.0,0.41186795]
[1641743362986,0.060246,41523.0,41521.0,0.006]
[1641743363187,1.45,41522.0,41521.0,0.006]
[1641743363390,1.498,41522.0,41521.0,0.006]
[1641743363589,1.73073577,41522.0,41521.0,0.006]
[1641743363991,2.4677021,41522.0,41521.0,0.006]
[1641743364187,2.4677021,41522.0,41519.0,0.00017388]
[1641743364388,0.35272376,41521.0,41519.0,0.00017388]
[1641743364590,0.48545953,41521.0,41519.0,0.00017388]
[1641743364790,0.30850258,41519.0,41518.0,0.00017389]
[1641743364991,0.76461808,41519.0,41518.0,0.00017389]
[1641743365192,0.86461808,41519.0,41518.0,0.00017389]
[1641743365389,0.86461808,41519.0,41517.0,0.01347255]
[1641743365789,0.45850258,41519.0,41517.0,0.01347255]
[1641743366392,0.120523,41518.0,41517.0,0.01347255]
[1641743367136,0.44936239,41518.0,41517.0,0.01347255]
[1641743368235,0.4820935,41518.0,41517.0,0.01347255]
[1641743368437,0.44936239,41518.0,41517.0,0.01347255]
[1641743368835,0.21347255,41517.0,41515.0,9.28e-06]
[1641743369037,0.64366508,41516.0,41515.0,9.28e-06]
[1641743369236,0.92229064,41516.0,41506.0,0.00071727]
[1641743369436,0.92229064,41516.0,41505.0,0.00011]
[1641743369437,0.06149641,41506.0,41505.0,0.00011]
[1641743369637,0.17449,41506.0,41505.0,0.00011]
[1641743370891,0.18349,41506.0,41505.0,0.02211]
[1641743371091,0.42349,41506.0,41505.0,0.02211]
[1641743372093,0.41449,41506.0,41505.0,0.00011]
[1641743372892,0.43049,41506.0,41505.0,0.00011]
[1641743374092,0.41449,41506.0,41505.0,0.00011]
[1641743374341,0.41449,41506.0,41502.0,0.01152717]
[1641743374543,0.35421,41506.0,41502.0,0.01152717]
[1641743374945,0.36221,41506.0,41502.0,0.01152717]
[1641743375543,0.42248,41506.0,41502.0,0.01152717]
[1641743376142,0.41448,41506.0,41502.0,0.01152717]
[1641743376342,0.35421,41506.0,41502.0,0.01152717]
[1641743376945,0.060274,41504.0,41502.0,0.01152717]
[1641743377545,0.295,41506.0,41502.0,0.01152717]
[1641743377748,0.247,41506.0,41502.0,0.01152717]
[1641743378191,0.24,41506.0,41502.0,0.01152717]
[1641743378590,0.68921881,41519.0,41502.0,0.01152717]
[1641743378591,1.60537118,41515.0,41507.0,0.26526901]
[1641743378790,0.048,41514.0,41507.0,0.26526901]
[1641743379491,0.060264,41510.0,41507.0,0.26526901]
[1641743380093,0.060264,41510.0,41506.0,0.25618917]
[1641743380694,0.260361,41512.0,41506.0,0.25618917]
[1641743380891,0.243,41510.0,41506.0,0.25618917]
[1641743381491,0.243,41510.0,41506.0,0.25628742]
[1641743381741,0.243,41510.0,41507.0,0.25327226]
[1641743382142,0.24,41510.0,41507.0,0.25327226]
[1641743382540,0.21,41510.0,41507.0,0.25327226]
[1641743382944,0.234,41510.0,41507.0,0.25327226]
[1641743384142,0.234,41510.0,41508.0,0.26781234]
[1641743384543,0.2001,41512.0,41508.0,0.26781234]
[1641743384843,0.2001,41512.0,41508.0,0.36781234]
[1641743385043,0.00021562,41515.0,41508.0,0.2]
[1641743385243,0.00021562,41515.0,41513.0,0.30039168]
[1641743385888,0.00021562,41515.0,41512.0,0.0602473]
[1641743386089,0.00021205,41516.0,41512.0,0.0602473]
[1641743386489,0.00021205,41516.0,41509.0,0.1217431]
[1641743386690,0.00021205,41516.0,41509.0,0.0012571]
[1641743386890,0.00021205,41516.0,41512.0,0.069]
[1641743387088,0.00020798,41515.0,41512.0,0.069]
[1641743387289,0.00020798,41515.0,41512.0,0.04548817]
[1641743388090,0.00020798,41515.0,41514.0,0.41026874]
[1641743388296,0.00020798,41516.0,41514.0,0.41026874]
[1641743388990,0.00020798,41516.0,41515.0,0.31678125]
[1641743389249,0.01368077,41517.0,41515.0,0.58764328]
[1641743389450,0.01368077,41517.0,41514.0,0.48126874]
[1641743390049,0.01428077,41518.0,41514.0,0.61026874]
[1641743390251,0.01428077,41518.0,41514.0,0.41026874]
[1641743390454,0.01428077,41518.0,41514.0,0.47051174]
[1641743390650,0.01448898,41518.0,41514.0,0.41026874]
[1641743390851,0.02248898,41518.0,41514.0,0.42626874]
[1641743391050,0.02248898,41518.0,41514.0,0.95111666]
[1641743391254,0.02248898,41518.0,41514.0,1.07160632]
[1641743391650,0.02248898,41518.0,41514.0,1.13184932]
[1641743392051,0.26228077,41518.0,41514.0,1.13184932]
[1641743392251,0.25428077,41518.0,41514.0,1.05560632]
[1641743392450,0.25428077,41518.0,41514.0,0.99536232]
[1641743392989,0.26228077,41518.0,41514.0,1.12584932]
[1641743393288,0.26228077,41518.0,41514.0,1.06560632]
[1641743393491,0.26228077,41518.0,41514.0,1.00536232]
[1641743393689,0.0001134,41519.0,41514.0,1.00536232]
[1641743393892,0.0001134,41519.0,41518.0,0.1]
[1641743394093,0.0001134,41519.0,41518.0,0.85386538]
[1641743394094,0.00021162,41519.0,41518.0,0.85386538]
[1641743394491,0.00021162,41519.0,41518.0,0.95386538]
[1641743394891,0.00021162,41519.0,41518.0,0.96486538]
[1641743395091,0.00021162,41521.0,41518.0,0.86486538]
[1641743395296,0.00021162,41521.0,41518.0,0.011]
[1641743396192,0.00021155,41522.0,41518.0,0.31648438]
[1641743396392,0.00021155,41522.0,41519.0,0.32472988]
[1641743396752,0.00021155,41522.0,41521.0,0.3140427]
[1641743396939,0.00021155,41522.0,41521.0,0.61414893]
[1641743397339,0.00021155,41522.0,41521.0,0.98520899]
[1641743397539,0.4909491,41532.0,41528.0,0.44910012]
[1641743398139,0.03199838,41531.0,41528.0,0.44910012]
[1641743398343,0.03199838,41531.0,41526.0,0.40276191]
[1641743398543,0.4909491,41533.0,41526.0,0.34253476]
[1641743398942,0.03199701,41532.0,41526.0,0.35253476]
[1641743399142,0.03199701,41532.0,41526.0,0.01]
[1641743399341,0.4909491,41534.0,41526.0,0.01]
[1641743399342,0.03199701,41533.0,41526.0,0.01]
[1641743399642,0.03199701,41532.0,41526.0,0.01]
[1641743399845,0.060236,41531.0,41526.0,0.01]
[1641743400143,0.060236,41531.0,41524.0,0.29937534]
[1641743400343,0.03199701,41530.0,41525.0,0.27094633]
[1641743400590,0.03199701,41530.0,41521.0,0.28739488]
[1641743400988,0.03499701,41530.0,41525.0,0.039]
[1641743401388,0.03199701,41529.0,41525.0,0.039]
[1641743401589,0.42608447,41529.0,41525.0,0.039]
[1641743402188,0.42608447,41529.0,41524.0,0.26919766]
[1641743402189,0.03199701,41528.0,41524.0,0.26919766]
[1641743402788,0.03199701,41528.0,41526.0,0.26009657]
[1641743402988,0.03320913,41528.0,41526.0,0.26009657]
[1641743403190,0.00121212,41528.0,41527.0,0.86585984]
[1641743403389,0.39029958,41529.0,41527.0,0.31715333]
[1641743403590,0.39029958,41528.0,41526.0,0.26009657]
[1641743403791,0.4909491,41530.0,41527.0,0.00122542]
[1641743403991,0.4909491,41535.0,41530.0,0.42452264]
[1641743404444,0.03202273,41534.0,41530.0,0.42452264]
[1641743405045,0.00011715,41534.0,41530.0,0.43452264]
[1641743405245,0.03202273,41533.0,41530.0,0.43452264]
[1641743405646,0.00011715,41534.0,41530.0,0.43452264]
[1641743406050,0.03213515,41534.0,41530.0,0.43452264]
[1641743406249,0.00011715,41534.0,41530.0,0.70472604]
[1641743406453,0.00011715,41534.0,41530.0,0.43452264]
[1641743406650,0.03213457,41534.0,41530.0,0.43452264]
[1641743406950,0.00011715,41534.0,41530.0,0.44252264]
[1641743407155,0.00011715,41534.0,41530.0,1.01438062]
[1641743407349,0.00021559,41534.0,41533.0,0.31942282]
[1641743407550,0.00021559,41534.0,41533.0,0.60277371]
[1641743407749,0.48116469,41539.0,41533.0,0.28335089]
[1641743408190,0.03201016,41538.0,41533.0,0.28335089]
[1641743408390,0.03201016,41538.0,41532.0,0.39707758]
[1641743408592,0.03201016,41540.0,41532.0,0.39707758]
[1641743408790,0.0012207,41541.0,41538.0,0.27007113]
[1641743408997,0.69506054,41542.0,41538.0,0.33028257]
[1641743408998,0.63484154,41542.0,41538.0,0.33028257]
[1641743409190,0.58921881,41542.0,41538.0,0.06021144]
[1641743409490,0.58933582,41542.0,41539.0,0.33271976]